{"text_format":"1","workbook":"xlsx","n_sheets":3,"sheets":["Identificação","Relat_Ação","Folha1"],"not_rendered":{"charts":0,"images":2,"macros":1,"external_links":0,"defined_names":2,"comments":2,"pivot_tables":0},"unopened":[],"bounds":{"document_bytes":16777216,"sheet_cells":100000,"rows_first":2000,"rows_last":500,"rows_between":2000,"halvings":0,"cell_chars":16384,"cell_head_chars":4096},"cells_cut":0,"cells_raw":0,"read":"whole","date_system":"1900"}

{"sheet":"Identificação","index":0,"n_rows":101,"n_cols":87,"rows_kept":101,"cut":false,"hidden":false,"merged":[[3,19,3,38],[5,19,5,38],[7,2,7,56],[33,7,33,16],[33,22,33,31],[33,36,33,55],[11,6,13,52],[14,6,16,52],[31,8,31,21],[31,42,31,55],[21,3,21,55],[29,42,29,55],[25,11,25,55],[27,11,27,55],[29,8,29,21],[29,33,29,36],[4,17,4,40],[29,38,29,40],[23,31,23,33],[38,3,38,55],[41,11,41,55],[44,32,44,55],[44,11,44,20],[46,7,46,16],[46,40,46,49],[50,6,50,53]]}
[null,null,null,null,null,null,null,null,null,null,null,null,null,null,null,null,null,null,null,null,null,null,null,null,null,null,null,null,null,null,null,null,null,null,null,null,null,null,null,null,null,null,null,null,null,null,null,null,null,null,null,null,null,null,null,null,"Versão 2024"]
[]
[]
[null,null,null,null,null,null,null,null,null,null,null,null,null,null,null,null,null,null,null,"REGIÃO AUTÓNOMA DOS AÇORES"]
[null,null,null,null,null,null,null,null,null,null,null,null,null,null,null,null,null,"SECRETARIA REGIONAL DA EDUCAÇÃO, CULTURA E DESPORTO"]
[null,null,null,null,null,null,null,null,null,null,null,null,null,null,null,null,null,null,null,"DIREÇÃO REGIONAL DO DESPORTO"]
[]
[null,null,"RELATÓRIO DA AÇÃO DE FORMAÇÃO"]
[]
[]
[]
[null,null,null,null,null,null,"FORMAÇÃO FORMAL DE AGENTES DESPORTIVOS NÃO PRATICANTES"]
[null,null,null,null,null,null,null,null,null,null,null,null,null,null,null,null,null,null,null,null,null,null,null,null,null,null,null,null,null,null,null,null,null,null,null,null,null,null,null,null,null,null,null,null,null,null,null,null,null,null,null,null,null,null,null,null,null,null,null,null," "]
[]
[null,null,null,null,null,null,"Portaria n.º 84/2018, de 3 de julho"]
[]
[]
[]
[]
[]
[]
[null,null,null,"IDENTIFICAÇÃO DA ENTIDADE "]
[]
[null,null,null,null,null,null,null,null,null,null,null,null,null,null,null,null,null,null,null,null,null,null,null,null,null,null,null,null,null,null,"Ano de referência:"]
[]
[null,null,null,"Designação Social: "]
[]
[null,null,null,"Morada (Sede Social):"]
[]
[null,null,null,"Localidade:",null,null,null,null,null,null,null,null,null,null,null,null,null,null,null,null,null,null,null,null,null,null,null,null,null,null,null,null,"Código Postal:  ",null,null,null,null,"-"]
[]
[null,null,null,"Concelho:",null,null,null,null,null,null,null,null,null,null,null,null,null,null,null,null,null,null,null,null,null,null,null,null,null,null,null,null,null,null,null,null,null,null,null,null,null,"Ilha:  "]
[]
[null,null,null,null,null,null,"Telefone: ",null,null,null,null,null,null,null,null,null,null,null,null,null,null,"Telemóvel: ",null,null,null,null,null,null,null,null,null,null,null,null,null,"E-mail: "]
[]
[]
[]
[]
[null,null,null,"IDENTIFICAÇÃO DO RESPONSÁVEL DA ENTIDADE"]
[]
[]
[null,null,null,null,null,null,null,null,null,null,"Presidente da Direção: "]
[null,null,null,null,null,null,null,null,null,null,null,null,"(Nome completo sem abreviaturas)"]
[]
[null,null,null,null,null,null,null,null,null,null,"B. Ident. / C. Cidadão:",null,null,null,null,null,null,null,null,null,null,null,null,null,null,null,null,null,null,null,null,"E-mail: "]
[]
[null,null,null,null,null,null,"Telefone: ",null,null,null,null,null,null,null,null,null,null,null,null,null,null,null,null,null,null,null,null,null,null,null,null,null,null,null,null,null,null,null,null,"Telemóvel: "]
[]
[]
[]
[null,null,"Entidade: ",null,null,null,{"$f":"IF(Identificação!AF24,Identificação!L26,\"\")","v":""},null,null,null,null,null,null,null,null,null,null,null,null,null,null,null,null,null,null,null,null,null,null,null,null,null,null,null,null,null,null,null,null,null,null,null,null,null,null,null,null,null,null,null,null,null,null,null,null,null,"Página 1"]
[]
[null,null,null,null,null,null,null,null,null,"Rua da Sé, n.º 158",null,null,null,null,null,null,null,null,null,null,null,null,null,null,null,null,null,null,null,null,null,null,null,null,null,null,null,null,null,null,null,null,null,null,null,null,null,"https://portal.azores.gov.pt/web/drd"]
[null,null,null,null,null,null,null,null,null,"9700-191 Angra do Heroísmo",null,null,null,null,null,null,null,null,null,null,null,null,null,null,null,null,null,null,null,null,"Telefone: 295 206 980 ",null,null,null,null,null,null,null,null,null,null,null,null,null,null,null,null,"drd@azores.gov.pt"]
[]
[]
[]
[]
[]
[]
[]
[]
[]
[]
[]
[]
[]
[]
[]
[null,null,null,null,null,null,null,null,null,null,null,null,null,null,null,null,null,null,null,null,null,null,null,null,null,null,null,null,null,null,null,null,null,null,null,null,null,null,null,null,null,null,null,null,null,null,null,null,null,null,null,null,null,null,null,null,null,null,null,null,null,"dia","ano","Modalidade",null,"Local","Concelho",null,"eliminatórias",null,"Fase Disputa",null,"Meios de transporte","Género",null,null,null,"GRAU","REGIME","CATEGORIA","SITUAÇÃO","CATEGORIA",null,"TIPOLOGIA",null,"OBJETIVOS","FUNÇÕES"]
[null,null,null,null,null,null,null,null,null,null,null,null,null,null,null,null,null,null,null,null,null,null,null,null,null,null,null,null,null,null,null,null,null,null,null,null,null,null,null,null,null,null,null,null,null,null,null,null,null,null,null,null,null,null,null,null,null,null,null,null,null,1,2016,"Andebol",null,"Continente","Angra do Heroísmo",null,"1ª Eliminatória",null,"Fase Única",null,"Aéreo","Masculino ","Sim","07-09 anos","Organização","I","T. Inteiro","Estagiário","Sim","Árbitro/Juiz",null,"C. T. Ilha",null,"da atividade (provas, clubes, equipas e praticantes)","Dir. Técnico"]
[null,null,null,null,null,null,null,null,null,null,null,null,null,null,null,null,null,null,null,null,null,null,null,null,null,null,null,null,null,null,null,null,null,null,null,null,null,null,null,null,null,null,null,null,null,null,null,null,null,null,null,null,null,null,null,null,null,null,null,null,null,2,2017,"Basquetebol",null,"Madeira","Calheta",null,"2ª Eliminatória",null,"Duas Fases",null,"Marítimo","Feminino","Não","08-10 anos","Participação","II","T. Parcial","Regional","Não","Treinador",null,"Proj. Especial",null,"do enquadramento técnico (excluir a formação)","Selecionador"]
[null,null,null,null,null,null,null,null,null,null,null,null,null,null,null,null,null,null,null,null,null,null,null,null,null,null,null,null,null,null,null,null,null,null,null,null,null,null,null,null,null,null,null,null,null,null,null,null,null,null,null,null,null,null,null,null,null,null,null,null,null,3,2018,"Futebol",null,"Santa Maria","Corvo",null,"3ª Eliminatória",null,"Três Fases",null,"Terrestre","Misto",null,"09-11 anos",null,"III",null,"Nacional","Não tem",null,null,"Estágio",null,"da arbitragem (excluir a formação)","Treinador"]
[null,null,null,null,null,null,null,null,null,null,null,null,null,null,null,null,null,null,null,null,null,null,null,null,null,null,null,null,null,null,null,null,null,null,null,null,null,null,null,null,null,null,null,null,null,null,null,null,null,null,null,null,null,null,null,null,null,null,null,null,null,4,2019,"Futsal",null,"São Miguel","Horta",null,"4ª Eliminatória",null,null,null,null,null,"Ativo","10-12 anos",null,"IV",null,"Internacional",null,null,null,"Outro",null,"da melhoria de classificações em provas regionais, nacionais e internacionais"]
[null,null,null,null,null,null,null,null,null,null,null,null,null,null,null,null,null,null,null,null,null,null,null,null,null,null,null,null,null,null,null,null,null,null,null,null,null,null,null,null,null,null,null,null,null,null,null,null,null,null,null,null,null,null,null,null,null,null,null,null,null,5,2020,"Hóquei em Patins",null,"Terceira","Lagoa",null,"1/16 avos de Final",null,null,null,null,null,"Inativo","11-13 anos",null,null,null,null,null,"Árbitro",null,null,null,"da formação de praticantes e de agentes desportivos não praticantes (preencher o n.º 7)"]
[null,null,null,null,null,null,null,null,null,null,null,null,null,null,null,null,null,null,null,null,null,null,null,null,null,null,null,null,null,null,null,null,null,null,null,null,null,null,null,null,null,null,null,null,null,null,null,null,null,null,null,null,null,null,null,null,null,null,null,null,null,6,2021,"Ténis de Mesa",null,"Graciosa","Lajes das Flores",null,"1/8 avos de Final",null,null,null,null,null,null,"12-14 anos",null,null,null,null,null,"Dirigente",null,null,null,"da promoção de atividades desportivas (preencher o n.º 8)"]
[null,null,null,null,null,null,null,null,null,null,null,null,null,null,null,null,null,null,null,null,null,null,null,null,null,null,null,null,null,null,null,null,null,null,null,null,null,null,null,null,null,null,null,null,null,null,null,null,null,null,null,null,null,null,null,null,null,null,null,null,null,7,2022,"Voleibol",null,"São Jorge","Lajes do Pico",null,"1/4 avos de Final",null,null,null,null,null,null,"13-15 anos",null,null,null,null,null,"Fisioterapeuta",null,null,null,"outro"]
[null,null,null,null,null,null,null,null,null,null,null,null,null,null,null,null,null,null,null,null,null,null,null,null,null,null,null,null,null,null,null,null,null,null,null,null,null,null,null,null,null,null,null,null,null,null,null,null,null,null,null,null,null,null,null,null,null,null,null,null,null,8,2023,null,null,"Pico","Madalena",null,"1/2 de Final",null,null,null,null,null,null,"14-16 anos",null,null,null,null,null,"Juiz"]
[null,null,null,null,null,null,null,null,null,null,null,null,null,null,null,null,null,null,null,null,null,null,null,null,null,null,null,null,null,null,null,null,null,null,null,null,null,null,null,null,null,null,null,null,null,null,null,null,null,null,null,null,null,null,null,null,null,null,null,null,null,9,2024,null,null,"Faial","Nordeste",null,"Final",null,null,null,null,null,null,"15-17 anos",null,null,null,null,null,"Médico"]
[null,null,null,null,null,null,null,null,null,null,null,null,null,null,null,null,null,null,null,null,null,null,null,null,null,null,null,null,null,null,null,null,null,null,null,null,null,null,null,null,null,null,null,null,null,null,null,null,null,null,null,null,null,null,null,null,null,null,null,null,null,10,2025,null,null,"Flores","Ponta Delgada",null,"Final Four",null,null,null,null,null,null,"16-18 anos",null,null,null,null,null,"Treinador"]
[null,null,null,null,null,null,null,null,null,null,null,null,null,null,null,null,null,null,null,null,null,null,null,null,null,null,null,null,null,null,null,null,null,null,null,null,null,null,null,null,null,null,null,null,null,null,null,null,null,null,null,null,null,null,null,null,null,null,null,null,null,11,2026,null,null,"Corvo","Povoação",null,null,null,null,null,null,null,null,"17-19 anos",null,null,null,null,null,"Outro"]
[null,null,null,null,null,null,null,null,null,null,null,null,null,null,null,null,null,null,null,null,null,null,null,null,null,null,null,null,null,null,null,null,null,null,null,null,null,null,null,null,null,null,null,null,null,null,null,null,null,null,null,null,null,null,null,null,null,null,null,null,null,12,null,null,null,null,"Praia da Vitória",null,null,null,null,null,null,null,null,"> 18 anos"]
[null,null,null,null,null,null,null,null,null,null,null,null,null,null,null,null,null,null,null,null,null,null,null,null,null,null,null,null,null,null,null,null,null,null,null,null,null,null,null,null,null,null,null,null,null,null,null,null,null,null,null,null,null,null,null,null,null,null,null,null,null,13,null,null,null,null,"Ribeira Grande",null,null,null,null,null,null,null,null,"> 19 anos"]
[null,null,null,null,null,null,null,null,null,null,null,null,null,null,null,null,null,null,null,null,null,null,null,null,null,null,null,null,null,null,null,null,null,null,null,null,null,null,null,null,null,null,null,null,null,null,null,null,null,null,null,null,null,null,null,null,null,null,null,null,null,14,null,null,null,null,"Santa Cruz da Graciosa"]
[null,null,null,null,null,null,null,null,null,null,null,null,null,null,null,null,null,null,null,null,null,null,null,null,null,null,null,null,null,null,null,null,null,null,null,null,null,null,null,null,null,null,null,null,null,null,null,null,null,null,null,null,null,null,null,null,null,null,null,null,null,15,null,null,null,null,"Santa Cruz das Flores"]
[null,null,null,null,null,null,null,null,null,null,null,null,null,null,null,null,null,null,null,null,null,null,null,null,null,null,null,null,null,null,null,null,null,null,null,null,null,null,null,null,null,null,null,null,null,null,null,null,null,null,null,null,null,null,null,null,null,null,null,null,null,16,null,null,null,null,"São Roque do Pico"]
[null,null,null,null,null,null,null,null,null,null,null,null,null,null,null,null,null,null,null,null,null,null,null,null,null,null,null,null,null,null,null,null,null,null,null,null,null,null,null,null,null,null,null,null,null,null,null,null,null,null,null,null,null,null,null,null,null,null,null,null,null,17,null,null,null,null,"Velas"]
[null,null,null,null,null,null,null,null,null,null,null,null,null,null,null,null,null,null,null,null,null,null,null,null,null,null,null,null,null,null,null,null,null,null,null,null,null,null,null,null,null,null,null,null,null,null,null,null,null,null,null,null,null,null,null,null,null,null,null,null,null,18,null,null,null,null,"Vila do Porto"]
[null,null,null,null,null,null,null,null,null,null,null,null,null,null,null,null,null,null,null,null,null,null,null,null,null,null,null,null,null,null,null,null,null,null,null,null,null,null,null,null,null,null,null,null,null,null,null,null,null,null,null,null,null,null,null,null,null,null,null,null,null,19,null,null,null,null,"Vila Franca do Campo"]
[null,null,null,null,null,null,null,null,null,null,null,null,null,null,null,null,null,null,null,null,null,null,null,null,null,null,null,null,null,null,null,null,null,null,null,null,null,null,null,null,null,null,null,null,null,null,null,null,null,null,null,null,null,null,null,null,null,null,null,null,null,20]
[null,null,null,null,null,null,null,null,null,null,null,null,null,null,null,null,null,null,null,null,null,null,null,null,null,null,null,null,null,null,null,null,null,null,null,null,null,null,null,null,null,null,null,null,null,null,null,null,null,null,null,null,null,null,null,null,null,null,null,null,null,21]
[null,null,null,null,null,null,null,null,null,null,null,null,null,null,null,null,null,null,null,null,null,null,null,null,null,null,null,null,null,null,null,null,null,null,null,null,null,null,null,null,null,null,null,null,null,null,null,null,null,null,null,null,null,null,null,null,null,null,null,null,null,22]
[null,null,null,null,null,null,null,null,null,null,null,null,null,null,null,null,null,null,null,null,null,null,null,null,null,null,null,null,null,null,null,null,null,null,null,null,null,null,null,null,null,null,null,null,null,null,null,null,null,null,null,null,null,null,null,null,null,null,null,null,null,23]
[null,null,null,null,null,null,null,null,null,null,null,null,null,null,null,null,null,null,null,null,null,null,null,null,null,null,null,null,null,null,null,null,null,null,null,null,null,null,null,null,null,null,null,null,null,null,null,null,null,null,null,null,null,null,null,null,null,null,null,null,null,24]
[null,null,null,null,null,null,null,null,null,null,null,null,null,null,null,null,null,null,null,null,null,null,null,null,null,null,null,null,null,null,null,null,null,null,null,null,null,null,null,null,null,null,null,null,null,null,null,null,null,null,null,null,null,null,null,null,null,null,null,null,null,25]
[null,null,null,null,null,null,null,null,null,null,null,null,null,null,null,null,null,null,null,null,null,null,null,null,null,null,null,null,null,null,null,null,null,null,null,null,null,null,null,null,null,null,null,null,null,null,null,null,null,null,null,null,null,null,null,null,null,null,null,null,null,26]
[null,null,null,null,null,null,null,null,null,null,null,null,null,null,null,null,null,null,null,null,null,null,null,null,null,null,null,null,null,null,null,null,null,null,null,null,null,null,null,null,null,null,null,null,null,null,null,null,null,null,null,null,null,null,null,null,null,null,null,null,null,27]
[null,null,null,null,null,null,null,null,null,null,null,null,null,null,null,null,null,null,null,null,null,null,null,null,null,null,null,null,null,null,null,null,null,null,null,null,null,null,null,null,null,null,null,null,null,null,null,null,null,null,null,null,null,null,null,null,null,null,null,null,null,28]
[null,null,null,null,null,null,null,null,null,null,null,null,null,null,null,null,null,null,null,null,null,null,null,null,null,null,null,null,null,null,null,null,null,null,null,null,null,null,null,null,null,null,null,null,null,null,null,null,null,null,null,null,null,null,null,null,null,null,null,null,null,29]
[null,null,null,null,null,null,null,null,null,null,null,null,null,null,null,null,null,null,null,null,null,null,null,null,null,null,null,null,null,null,null,null,null,null,null,null,null,null,null,null,null,null,null,null,null,null,null,null,null,null,null,null,null,null,null,null,null,null,null,null,null,30]
[null,null,null,null,null,null,null,null,null,null,null,null,null,null,null,null,null,null,null,null,null,null,null,null,null,null,null,null,null,null,null,null,null,null,null,null,null,null,null,null,null,null,null,null,null,null,null,null,null,null,null,null,null,null,null,null,null,null,null,null,null,31]

{"sheet":"Relat_Ação","index":1,"n_rows":286,"n_cols":68,"rows_kept":286,"cut":false,"hidden":false,"merged":[[69,47,69,55],[70,3,70,46],[70,47,70,55],[71,3,71,46],[71,47,71,55],[72,3,72,46],[72,47,72,55],[117,41,117,50],[117,51,117,55],[94,42,94,46],[94,51,94,55],[109,51,109,55],[110,51,110,55],[102,41,102,50],[103,41,103,50],[102,51,102,55],[103,51,103,55],[98,41,98,55],[99,41,99,55],[104,41,104,55],[105,41,105,50],[101,51,101,55],[96,42,96,46],[96,51,96,55],[125,1,126,57],[128,2,139,56],[114,41,114,50],[112,24,112,39],[113,24,113,34],[113,35,113,39],[121,35,121,39],[123,51,123,55],[123,41,123,50],[122,35,122,39],[122,24,122,34],[119,35,119,39],[122,51,122,55],[122,41,122,50],[120,51,120,55],[116,41,116,50],[119,41,119,50],[120,41,120,50],[116,35,116,39],[118,24,118,34],[119,24,119,34],[120,24,120,34],[120,35,120,39],[118,35,118,39],[154,6,154,51],[154,53,154,56],[141,1,142,57],[144,2,144,56],[145,2,145,56],[150,2,150,56],[151,2,151,28],[151,29,151,56],[152,2,152,56],[147,2,147,56],[149,2,149,56],[148,2,148,56],[146,2,146,56],[111,51,111,55],[112,51,112,55],[113,51,113,55],[114,51,114,55],[93,42,93,46],[93,51,93,55],[101,41,101,50],[100,51,100,55],[105,51,105,55],[106,51,106,55],[106,41,106,50],[108,41,108,55],[102,24,102,34],[103,24,103,34],[100,35,100,39],[101,3,101,7],[101,8,101,9],[104,3,104,7],[104,8,104,9],[104,11,104,17],[105,3,105,7],[105,8,105,9],[105,11,105,17],[105,18,105,22],[105,24,105,34],[102,3,102,7],[102,8,102,9],[102,11,102,17],[102,18,102,22],[103,3,103,7],[104,24,104,34],[104,35,104,39],[103,8,103,9],[103,11,103,17],[103,18,103,22],[98,24,98,39],[100,24,100,34],[96,33,96,37],[101,24,101,34],[95,24,95,28],[96,11,96,12],[115,51,115,55],[115,41,115,50],[109,41,109,50],[110,41,110,50],[111,41,111,50],[112,41,112,50],[113,41,113,50],[104,18,104,22],[101,18,101,22],[101,11,101,17],[103,35,103,39],[101,35,102,39],[110,3,110,20],[110,21,110,22],[110,24,110,34],[108,3,108,7],[108,8,108,9],[108,18,108,22],[89,3,89,10],[90,3,90,10],[96,3,96,10],[89,11,89,12],[93,17,93,23],[94,17,94,23],[89,17,89,23],[93,3,93,10],[99,3,100,9],[99,11,100,22],[98,3,98,22],[96,13,97,23],[93,33,93,37],[94,33,94,37],[94,3,94,10],[93,24,93,28],[94,24,94,28],[90,11,90,12],[91,17,91,23],[92,17,92,23],[90,17,90,23],[91,11,91,12],[92,11,92,12],[93,11,93,12],[94,11,94,12],[91,3,91,10],[87,17,88,28],[89,24,89,28],[90,33,90,37],[91,33,91,37],[90,42,90,46],[91,42,91,46],[90,51,90,55],[91,51,91,55],[92,24,92,28],[90,24,90,28],[91,24,91,28],[92,42,92,46],[92,51,92,55],[89,42,89,46],[89,51,89,55],[89,33,89,37],[92,33,92,37],[54,2,54,10],[54,11,54,18],[54,19,54,40],[54,41,54,47],[54,49,54,53],[54,54,54,56],[55,2,55,10],[55,11,55,18],[62,21,62,25],[62,27,62,31],[62,33,62,37],[62,39,62,43],[62,45,62,49],[62,51,62,55],[62,3,62,7],[62,9,62,13],[62,15,62,19],[55,19,55,40],[57,2,58,56],[60,3,60,55],[61,3,61,7],[61,9,61,13],[61,15,61,19],[61,21,61,25],[52,2,52,10],[52,11,52,18],[52,19,52,40],[52,41,52,47],[52,49,52,53],[52,54,52,56],[53,2,53,10],[53,11,53,18],[53,19,53,40],[53,41,53,47],[53,49,53,53],[53,54,53,56],[50,2,50,10],[50,11,50,18],[50,19,50,40],[50,41,50,47],[50,49,50,53],[50,54,50,56],[51,2,51,10],[51,11,51,18],[51,19,51,40],[51,41,51,47],[51,49,51,53],[51,54,51,56],[48,2,48,10],[48,11,48,18],[48,19,48,40],[48,41,48,47],[48,49,48,53],[48,54,48,56],[49,2,49,10],[49,11,49,18],[49,19,49,40],[45,2,45,10],[45,11,45,18],[45,19,45,40],[45,41,45,47],[46,2,46,10],[46,11,46,18],[46,19,46,40],[46,41,46,47],[47,2,47,10],[47,11,47,18],[47,19,47,40],[44,2,44,10],[44,11,44,18],[44,19,44,40],[44,41,44,47],[41,2,41,10],[41,11,41,18],[41,19,41,40],[41,41,41,47],[43,2,43,10],[43,11,43,18],[43,19,43,40],[42,2,42,10],[42,11,42,18],[42,19,42,40],[42,41,42,47],[17,52,17,54],[20,1,21,57],[23,2,30,56],[32,1,34,57],[36,2,37,56],[39,2,40,10],[39,11,40,18],[39,19,40,40],[39,41,40,47],[39,49,40,56],[17,16,17,18],[17,20,17,22],[17,24,17,26],[17,44,17,46],[17,48,17,50],[0,1,3,57],[5,1,6,57],[9,1,9,6],[9,7,9,15],[9,27,9,33],[9,44,9,56],[15,24,15,26],[15,9,15,19],[11,7,11,15],[11,26,11,33],[15,31,15,37],[15,45,15,55],[11,44,11,56],[13,11,13,55],[41,49,42,56],[43,41,43,47],[47,41,47,47],[47,49,47,53],[47,54,47,56],[44,49,46,56],[49,41,49,47],[49,49,49,53],[49,54,49,56],[87,3,88,12],[95,33,95,37],[95,42,95,46],[95,51,95,55],[95,17,95,23],[107,3,107,7],[107,8,107,9],[107,11,107,17],[107,18,107,22],[87,33,88,37],[87,42,88,46],[87,51,88,55],[92,3,92,10],[95,11,95,12],[95,3,95,10],[106,3,106,7],[106,8,106,9],[106,11,106,17],[106,18,106,22],[105,35,105,39],[96,24,96,28],[99,24,99,39],[100,41,100,50],[106,24,106,34],[61,27,61,31],[61,33,61,37],[61,39,61,43],[61,45,61,49],[61,51,61,55],[55,41,55,47],[55,49,55,53],[55,54,55,56],[86,3,86,55],[74,6,74,51],[74,53,74,56],[78,1,81,57],[83,1,84,57],[64,47,64,55],[64,3,64,46],[65,3,65,46],[65,47,65,55],[66,3,66,46],[66,47,66,55],[67,3,67,46],[67,47,67,55],[68,3,68,46],[68,47,68,55],[69,3,69,46],[106,35,106,39],[114,35,114,39],[115,35,115,39],[115,24,115,34],[114,24,114,34],[111,3,113,20],[118,51,118,55],[121,41,121,50],[121,51,121,55],[117,35,117,39],[109,24,109,34],[109,35,109,39],[111,24,111,34],[111,35,111,39],[108,35,108,39],[107,24,107,39],[108,24,108,34],[116,51,116,55],[119,51,119,55],[110,35,110,39],[116,24,116,34],[117,24,117,34],[121,24,121,34],[118,41,118,50]]}
[null,"RELATÓRIO DA AÇÃO DE FORMAÇÃO\nFORMAÇÃO FORMAL DE AGENTES DESPORTIVOS NÃO PRATICANTES"]
[]
[]
[]
[]
[null,"DADOS GERAIS"]
[]
[]
[]
[null,"Modalidade:",null,null,null,null,null,null,null,null,null,null,null,null,null,null,null,null,null,null,null,null,null,null,null,null,"Modelo de organização:",null,null,null,null,null,null,null,null,null,null,null,null,null,null,null,null,"Entidade proponente:"]
[]
[null,null,null,null,null,null,"Modo:  ",null,null,null,null,null,null,null,null,null,null,null,null,null,null,null,null,null,null,"Tipologia da ação: ",null,null,null,null,null,null,null,null,null,null,null,null,null,null,null,null,null,"Entidade organizadora:"]
[]
[null,null,null,null,null,null,null,null,null,null,"Designação da ação: "]
[]
[null,null,null,null,null,null,null,null,"Categoria da ação: ",null,null,null,null,null,null,null,null,null,null,null,null,null,null,"Grau: ",null,null,null,null,null,null,"Nível: ",null,null,null,null,null,null,null,null,null,null,null,null,null,"Local da ação: "]
[]
[null,null,null,null,null,null,null,null,null,null,null,null,null,null,null,"Data de início da ação: ",null,null,null,"/",null,null,null,"/",null,null,null,null,null,null,null,null,null,null,null,null,null,null,null,null,null,null,null,"Data de fim da ação: ",null,null,null,"/",null,null,null,"/"]
[]
[]
[null,"OBJETIVOS ATINGIDOS E RESPETIVA JUSTIFICAÇÃO"]
[]
[]
[]
[]
[]
[]
[]
[]
[]
[]
[]
[null,"DADOS REFERENTES À ESTRUTURA DA AÇÃO \n(adequar o preenchimento consoante Organização/Participação)"]
[]
[]
[]
[null,null,"ORGANIZAÇÃO"]
[]
[]
[null,null,"Nome do Preletor",null,null,null,null,null,null,null,null,"Origem do Preletor",null,null,null,null,null,null,null,"Unidades/Módulos de Formação por preletor",null,null,null,null,null,null,null,null,null,null,null,null,null,null,null,null,null,null,null,null,null,"Carga Horária por disciplina",null,null,null,null,null,null,null,"N.º total de participantes "]
[]
[]
[]
[]
[null,null,null,null,null,null,null,null,null,null,null,null,null,null,null,null,null,null,null,null,null,null,null,null,null,null,null,null,null,null,null,null,null,null,null,null,null,null,null,null,null,null,null,null,null,null,null,null,null,"N.º de Participantes deslocados"]
[]
[]
[null,null,null,null,null,null,null,null,null,null,null,null,null,null,null,null,null,null,null,null,null,null,null,null,null,null,null,null,null,null,null,null,null,null,null,null,null,null,null,null,null,null,null,null,null,null,null,null,null,"Stª Maria"]
[null,null,null,null,null,null,null,null,null,null,null,null,null,null,null,null,null,null,null,null,null,null,null,null,null,null,null,null,null,null,null,null,null,null,null,null,null,null,null,null,null,null,null,null,null,null,null,null,null,"S. Miguel"]
[null,null,null,null,null,null,null,null,null,null,null,null,null,null,null,null,null,null,null,null,null,null,null,null,null,null,null,null,null,null,null,null,null,null,null,null,null,null,null,null,null,null,null,null,null,null,null,null,null,"Terceira"]
[null,null,null,null,null,null,null,null,null,null,null,null,null,null,null,null,null,null,null,null,null,null,null,null,null,null,null,null,null,null,null,null,null,null,null,null,null,null,null,null,null,null,null,null,null,null,null,null,null,"Graciosa"]
[null,null,null,null,null,null,null,null,null,null,null,null,null,null,null,null,null,null,null,null,null,null,null,null,null,null,null,null,null,null,null,null,null,null,null,null,null,null,null,null,null,null,null,null,null,null,null,null,null,"S. Jorge"]
[null,null,null,null,null,null,null,null,null,null,null,null,null,null,null,null,null,null,null,null,null,null,null,null,null,null,null,null,null,null,null,null,null,null,null,null,null,null,null,null,null,null,null,null,null,null,null,null,null,"Pico"]
[null,null,null,null,null,null,null,null,null,null,null,null,null,null,null,null,null,null,null,null,null,null,null,null,null,null,null,null,null,null,null,null,null,null,null,null,null,null,null,null,null,null,null,null,null,null,null,null,null,"Faial"]
[null,null,null,null,null,null,null,null,null,null,null,null,null,null,null,null,null,null,null,null,null,null,null,null,null,null,null,null,null,null,null,null,null,null,null,null,null,null,null,null,null,null,null,null,null,null,null,null,null,"Flores"]
[null,null,null,null,null,null,null,null,null,null,null,null,null,null,null,null,null,null,null,null,null,null,null,null,null,null,null,null,null,null,null,null,null,null,null,null,null,null,null,null,null,null,null,null,null,null,null,null,null,"Corvo"]
[]
[null,null,"PARTICIPAÇÃO"]
[]
[]
[null,null,null,"Número de formandos por Ilha"]
[null,null,null,"Stª Maria",null,null,null,null,null,"S. Miguel",null,null,null,null,null,"Terceira",null,null,null,null,null,"Graciosa",null,null,null,null,null,"S. Jorge",null,null,null,null,null,"Pico",null,null,null,null,null,"Faial",null,null,null,null,null,"Flores",null,null,null,null,null,"Corvo"]
[]
[]
[null,null,null,"Identificação dos formandos",null,null,null,null,null,null,null,null,null,null,null,null,null,null,null,null,null,null,null,null,null,null,null,null,null,null,null,null,null,null,null,null,null,null,null,null,null,null,null,null,null,null,null,"Ilha de origem"]
[]
[]
[]
[]
[]
[]
[]
[]
[]
[null,null,"Entidade: ",null,null,null,{"$f":"IF(Identificação!AF24,Identificação!L26,\"\")","v":""},null,null,null,null,null,null,null,null,null,null,null,null,null,null,null,null,null,null,null,null,null,null,null,null,null,null,null,null,null,null,null,null,null,null,null,null,null,null,null,null,null,null,null,null,null,null,"Página  1/2"]
[]
[null,null,null,null,null,null,null,null,null,"Rua da Sé, n.º 158",null,null,null,null,null,null,null,null,null,null,null,null,null,null,null,null,null,null,null,null,null,null,null,null,null,null,null,null,null,null,null,null,null,null,null,null,null,"https://portal.azores.gov.pt/web/drd"]
[null,null,null,null,null,null,null,null,null,"9700-191 Angra do Heroísmo",null,null,null,null,null,null,null,null,null,null,null,null,null,null,null,null,null,null,null,null,"Telefone: 295 206 980 ",null,null,null,null,null,null,null,null,null,null,null,null,null,null,null,null,"drd@azores.gov.pt"]
[null,"RELATÓRIO DA AÇÃO DE FORMAÇÃO\nFORMAÇÃO FORMAL DE AGENTES DESPORTIVOS NÃO PRATICANTES"]
[]
[]
[]
[]
[null,"EXECUÇÃO ORÇAMENTAL"]
[]
[null,null,null,null,null,null,null,null,null,null,null,null,null,null,null,null,null,null,null,null,null,null,null,null,null,null,null,null,null,null,null,null,null," "]
[null,null,null,"PRELETORES"]
[null,null,null,"Número de deslocados",null,null,null,null,null,null,null,null,null,null,null,null,null,"Valor de Viagens",null,null,null,null,null,null,null,null,null,null,null,null,null,null,null,"Valor dos Alojamentos",null,null,null,null,null,null,null,null,"Valor das Refeições",null,null,null,null,null,null,null,null,"Valor das Preleções"]
[]
[null,null,null,"Continente",null,null,null,null,null,null,null,null,null,null,null,null,null,"Aéreas"]
[null,null,null,"Madeira",null,null,null,null,null,null,null,null,null,null,null,null,null,"Aéreas"]
[null,null,null,"Açores (V. Aérea)",null,null,null,null,null,null,null,null,null,null,null,null,null,"Aéreas",null,null,null,null,null,null,{"$f":"IF(L92=\"\",\"\",L92*BM221)","v":""}]
[null,null,null,"Açores (V. Marítima)",null,null,null,null,null,null,null,null,null,null,null,null,null,"Marítima (PIX/FAI)",null,null,null,null,null,null,{"$f":"IF(L93=\"\",\"\",L93*BM222)","v":""}]
[null,null,null,"Açores (V. Marítima)",null,null,null,null,null,null,null,null,null,null,null,null,null,"Marítima (SJZ/FAI)",null,null,null,null,null,null,{"$f":"IF(L94=\"\",\"\",L94*BM223)","v":""}]
[null,null,null,"Açores (V. Marítima)",null,null,null,null,null,null,null,null,null,null,null,null,null,"Marítima (SJZ/PIX)",null,null,null,null,null,null,{"$f":"IF(L95=\"\",\"\",L95*BM224)","v":""}]
[null,null,null,"Marítima (outras)",null,null,null,null,null,null,null,null,null,null,null,null,null,"Marítima (outras)"]
[null,null,null,"TOTAL",null,null,null,null,null,null,null,{"$f":"IF(H10=\"\",\"\",SUM(L90:M96))","v":""},null,{"$f":"IF(AND(BK277=BK276,BL277=BL276,BM277=BM276,BN277=BN276),IF(L97>2,BL278,\"\"),\"\")","v":""},null,null,null,null,null,null,null,null,null,null,{"$f":"IF(H10=\"\",\"\",SUM(Y90:AC96))","v":""},null,null,null,null,null,null,null,null,{"$f":"IF(H10=\"\",\"\",SUM(AH90:AL96))","v":""},null,null,null,null,null,null,null,null,{"$f":"IF(H10=\"\",\"\",SUM(AQ90:AU96))","v":""},null,null,null,null,null,null,null,null,{"$f":"IF(H10=\"\",\"\",SUM(AZ90:BD96))","v":""}]
[]
[null,null,null,"FORMANDOS",null,null,null,null,null,null,null,null,null,null,null,null,null,null,null,null,null,null,null,null,"RECEITAS",null,null,null,null,null,null,null,null,null,null,null,null,null,null,null,null,"DESPESAS"]
[null,null,null,"Número de deslocados para",null,null,null,null,null,null,null,"Valor de Viagens",null,null,null,null,null,null,null,null,null,null,null,null,"APOIO DA DRD - PRELETORES",null,null,null,null,null,null,null,null,null,null,null,null,null,null,null,null,"PRELETORES"]
[null,null,null,null,null,null,null,null,null,null,null,null,null,null,null,null,null,null,null,null,null,null,null,null,"Viagens",null,null,null,null,null,null,null,null,null,null,{"$f":"Y97","v":""},null,null,null,null,null,"Viagens",null,null,null,null,null,null,null,null,null,{"$f":"Y97","v":""}]
[null,null,null,"Continente",null,null,null,null,null,null,null,"Aéreas",null,null,null,null,null,null,{"$f":"IF(I102=\"\",\"\",I102*BM219)","v":""},null,null,null,null,null,"Alojamento",null,null,null,null,null,null,null,null,null,null,{"$f":"IFERROR(ROUND(IF(H10=\"\",\"\",(AH97+AQ97)*80%),2),0)","v":0},null,null,null,null,null,"Alojamento",null,null,null,null,null,null,null,null,null,{"$f":"AH97","v":""}]
[null,null,null,"Madeira",null,null,null,null,null,null,null,"Aéreas",null,null,null,null,null,null,{"$f":"IF(I103=\"\",\"\",I103*BM220)","v":""},null,null,null,null,null,"Refeições",null,null,null,null,null,null,null,null,null,null,null,null,null,null,null,null,"Refeições",null,null,null,null,null,null,null,null,null,{"$f":"AQ97","v":""}]
[null,null,null,"Açores ",null,null,null,null,null,null,null,"Aéreas",null,null,null,null,null,null,{"$f":"IF(I104=\"\",\"\",I104*BM221)","v":""},null,null,null,null,null,"Preleções",null,null,null,null,null,null,null,null,null,null,{"$f":"IFERROR(ROUND(IF(H10=\"\",\"\",AZ97*60%),2),0)","v":0},null,null,null,null,null,"Preleções",null,null,null,null,null,null,null,null,null,{"$f":"AZ97","v":""}]
[null,null,null,"Açores ",null,null,null,null,null,null,null,"Marítima (PIX/FAI)",null,null,null,null,null,null,{"$f":"IF(I105=\"\",\"\",I105*BM222)","v":""},null,null,null,null,null,"SUBTOTAL PRELETORES",null,null,null,null,null,null,null,null,null,null,{"$f":"IF(H10=\"\",\"\",SUM(AJ101:AN104))","v":""},null,null,null,null,null,"FORMANDOS"]
[null,null,null,"Açores ",null,null,null,null,null,null,null,"Marítima (SJZ/FAI)",null,null,null,null,null,null,{"$f":"IF(I106=\"\",\"\",I106*BM223)","v":""},null,null,null,null,null,{"$f":"IF(AJ106=\"\",\"\",BM268)","v":""},null,null,null,null,null,null,null,null,null,null,{"$f":"IF(H10=\"\",\"\",IF(AJ105>BL268,BL268,\"\"))","v":""},null,null,null,null,null,"Viagens",null,null,null,null,null,null,null,null,null,{"$f":"S109","v":""}]
[null,null,null,"Açores ",null,null,null,null,null,null,null,"Marítima (SJZ/PIX)",null,null,null,null,null,null,{"$f":"IF(I107=\"\",\"\",I107*BM224)","v":""},null,null,null,null,null,null,null,null,null,null,null,null,null,null,null,null,null,null,null,null,null,null,"TOTAL A CONSIDERAR",null,null,null,null,null,null,null,null,null,{"$f":"IF(H10=\"\",\"\",SUM(AZ101:BD104)+AZ106)","v":""}]
[null,null,null,"Açores ",null,null,null,null,null,null,null,"Marítima (outras)",null,null,null,null,null,null,null,null,null,null,null,null,"APOIO DA DRD - FORMANDOS"]
[null,null,null,"TOTAL",null,null,null,null,{"$f":"IF(H10=\"\",\"\",SUM(I102:J108))","v":""},null,null,null,null,null,null,null,null,null,{"$f":"IF(H10=\"\",\"\",SUM(S102:W108))","v":""},null,null,null,null,null,"Viagens",null,null,null,null,null,null,null,null,null,null,{"$f":"S109","v":""},null,null,null,null,null,"OUTRAS DESPESAS"]
[null,null,null,null,null,null,null,null,null,null,null,null,null,null,null,null,null,null,null,null,null,null,null,null,"SUBTOTAL FORMANDOS",null,null,null,null,null,null,null,null,null,null,{"$f":"AJ109","v":""},null,null,null,null,null,"Transp. Terrestres Prelet."]
[null,null,null,{"$f":"IF(H10=\"\",\"\",IF(V111=\"\",\"\",BM264))","v":""},null,null,null,null,null,null,null,null,null,null,null,null,null,null,null,null,null,{"$f":"IF(H10=\"\",\"\",IF(I109>BL264,BL264,\"\"))","v":""},null,{"$f":"IF(H10=\"\",\"\",IF(V111=\"\",\"\",BN264))","v":""},{"$f":"IF(V111=\"\",\"\",BM263)","v":""},null,null,null,null,null,null,null,null,null,null,null,null,null,null,null,null,"Outras Preletores"]
[null,null,null,{"$f":"IF(V111=\"\",\"\",BM265)","v":""},null,null,null,null,null,null,null,null,null,null,null,null,null,null,null,null,null,null,null,null,"TOTAL DO APOIO DA DRD",null,null,null,null,null,null,null,null,null,null,{"$f":"IFERROR(ROUND(IF(H10=\"\",\"\",BL274),2),0)","v":0},null,null,null,null,null,"Transp. Terrestres Forman."]
[null,null,null,null,null,null,null,null,null,null,null,null,null,null,null,null,null,null,null,null,null,null,null,null,"OUTRAS RECEITAS",null,null,null,null,null,null,null,null,null,null,null,null,null,null,null,null,"Alojamento Formandos"]
[null,null,null,null,null,null,null,null,null,null,null,null,null,null,null,null,null,null,null,null,null,null,null,null,"Taxas de inscrição",null,null,null,null,null,null,null,null,null,null,null,null,null,null,null,null,"Alimentação Formandos"]
[null,null,null,null,null,null,null,null,null,null,null,null,null,null,null,null,null,null,null,null,null,null,null,null,"Apoio federativo",null,null,null,null,null,null,null,null,null,null,null,null,null,null,null,null,"Outras Formandos"]
[null,null,null,null,null,null,null,null,null,null,null,null,null,null,null,null,null,null,null,null,null,null,null,null,"Câmara Municipal",null,null,null,null,null,null,null,null,null,null,null,null,null,null,null,null,"Taxas inscrição das ações"]
[null,null,null,null,null,null,null,null,null,null,null,null,null,null,null,null,null,null,null,null,null,null,null,null,"Junta de Freguesia",null,null,null,null,null,null,null,null,null,null,null,null,null,null,null,null,"Outras Organização"]
[null,null,null,null,null,null,null,null,null,null,null,null,null,null,null,null,null,null,null,null,null,null,null,null,"Verbas outros depart. do GRA",null,null,null,null,null,null,null,null,null,null,null,null,null,null,null,null,"Funcion. administrativo"]
[null,null,null,null,null,null,null,null,null,null,null,null,null,null,null,null,null,null,null,null,null,null,null,null,"Publicid. e Contr. Prest. Serv.",null,null,null,null,null,null,null,null,null,null,null,null,null,null,null,null,"Direção de Curso"]
[null,null,null,null,null,null,null,null,null,null,null,null,null,null,null,null,null,null,null,null,null,null,null,null,"Donativos arrecadados",null,null,null,null,null,null,null,null,null,null,null,null,null,null,null,null,"Aluguer de Material"]
[null,null,null,null,null,null,null,null,null,null,null,null,null,null,null,null,null,null,null,null,null,null,null,null,"Outras receitas próprias",null,null,null,null,null,null,null,null,null,null,null,null,null,null,null,null,"Aquisição de Material"]
[null,null,null,null,null,null,null,null,null,null,null,null,null,null,null,null,null,null,null,null,null,null,null,null,"Valores subsídio mobilidade",null,null,null,null,null,null,null,null,null,null,null,null,null,null,null,null,"Outras Encargos Administ."]
[null,null,null,null,null,null,null,null,null,null,null,null,null,null,null,null,null,null,null,null,null,null,null,null,"TOTAL DAS RECEITAS",null,null,null,null,null,null,null,null,null,null,{"$f":"IF(H10=\"\",\"\",AJ112+SUM(AJ114:AN122))","v":""},null,null,null,null,null,"TOTAL DE DESPESAS",null,null,null,null,null,null,null,null,null,{"$f":"IF(H10=\"\",\"\",SUM(AZ110:BD122)+AZ107)","v":""}]
[null,null,null,null,null,null,null,null,null,null,null,null,null,null,null,null,null,null,null,null,null,null,null,null,null,null,null,null,null,null,null,null,null,null,null,null,null,null,null,null,null,"SALDO",null,null,null,null,null,null,null,null,null,{"$f":"IF(H10=\"\",\"\",AJ123-AZ123)","v":""}]
[]
[null,"JUSTIFICAÇÃO DOS CUSTOS"]
[]
[]
[]
[]
[]
[]
[]
[]
[]
[]
[]
[]
[]
[]
[]
[null,"ANEXOS OBRIGATÓRIOS"]
[]
[]
[null,null,"CURSOS"]
[null,null,"Reconhecimento Federativo da organização do curso ou código atribuído pelo IPDJ"]
[null,null,"Calendário e horário do curso/ação"]
[null,null,"Resultados federativos (comunicados ou declaração federativa) "]
[null,null,"Comunicado/declaração federativa ou associativa de participação com a indicação do local e data"]
[]
[null,null,"RECICLAGENS/FORMAÇÕES CONTÍNUAS"]
[null,null,"Treinadores: Código da ação, atribuído pelo IPDJ",null,null,null,null,null,null,null,null,null,null,null,null,null,null,null,null,null,null,null,null,null,null,null,null,null,null,"Árbitros: Declaração federativa de reconhecimento da organização da ação"]
[null,null,"Comunicado/declaração federativa ou associativa de participação com a indicação do local e data"]
[]
[null,null,"Entidade: ",null,null,null,{"$f":"IF(Identificação!AF24,Identificação!L26,\"\")","v":""},null,null,null,null,null,null,null,null,null,null,null,null,null,null,null,null,null,null,null,null,null,null,null,null,null,null,null,null,null,null,null,null,null,null,null,null,null,null,null,null,null,null,null,null,null,null,"Página  2/2"]
[]
[null,null,null,null,null,null,null,null,null,"Rua da Sé, n.º 158",null,null,null,null,null,null,null,null,null,null,null,null,null,null,null,null,null,null,null,null,null,null,null,null,null,null,null,null,null,null,null,null,null,null,null,null,null,"https://portal.azores.gov.pt/web/drd"]
[null,null,null,null,null,null,null,null,null,"9700-191 Angra do Heroísmo",null,null,null,null,null,null,null,null,null,null,null,null,null,null,null,null,null,null,null,null,"Telefone: 295 206 980 ",null,null,null,null,null,null,null,null,null,null,null,null,null,null,null,null,"drd@azores.gov.pt"]
[]
[]
[]
[]
[null,null,null,null,null,null,null,null,null,null,null,null,null,null,null,null,null,null,null,null,null,null,null,null,null,null,null,null,null,null,null,null,null,null,null,null,null,null,null,null,null,null,null,null,null,null,null,null,null,null,null,null,null,null,null,null,null,null,null,null,null,null,null,"Árbitro/Juiz"]
[null,null,null,null,null,null,null,null,null,null,null,null,null,null,null,null,null,null,null,null,null,null,null,null,null,null,null,null,null,null,null,null,null,null,null,null,null,null,null,null,null,null,null,null,null,null,null,null,null,null,null,null,null,null,null,null,null,null,null,null,null,null,null,"Treinador"]
[]
[null,null,null,null,null,null,null,null,null,null,null,null,null,null,null,null,null,null,null,null,null,null,null,null,null,null,null,null,null,null,null,null,null,null,null,null,null,null,null,null,null,null,null,null,null,null,null,null,null,null,null,null,null,null,null,null,null,null,null,null,null,null,null,"Organização",null,1,"JAN","Stª Maria"]
[null,null,null,null,null,null,null,null,null,null,null,null,null,null,null,null,null,null,null,null,null,null,null,null,null,null,null,null,null,null,null,null,null,null,null,null,null,null,null,null,null,null,null,null,null,null,null,null,null,null,null,null,null,null,null,null,null,null,null,null,null,null,null,"Participação",null,2,"FEV","S. Miguel"]
[null,null,null,null,null,null,null,null,null,null,null,null,null,null,null,null,null,null,null,null,null,null,null,null,null,null,null,null,null,null,null,null,null,null,null,null,null,null,null,null,null,null,null,null,null,null,null,null,null,null,null,null,null,null,null,null,null,null,null,null,null,null,null,null,null,3,"MAR","Terceira"]
[null,null,null,null,null,null,null,null,null,null,null,null,null,null,null,null,null,null,null,null,null,null,null,null,null,null,null,null,null,null,null,null,null,null,null,null,null,null,null,null,null,null,null,null,null,null,null,null,null,null,null,null,null,null,null,null,null,null,null,null,null,null,null,null,null,4,"ABR","Graciosa"]
[null,null,null,null,null,null,null,null,null,null,null,null,null,null,null,null,null,null,null,null,null,null,null,null,null,null,null,null,null,null,null,null,null,null,null,null,null,null,null,null,null,null,null,null,null,null,null,null,null,null,null,null,null,null,null,null,null,null,null,null,null,null,null,"Curso",null,5,"MAI","S. Jorge"]
[null,null,null,null,null,null,null,null,null,null,null,null,null,null,null,null,null,null,null,null,null,null,null,null,null,null,null,null,null,null,null,null,null,null,null,null,null,null,null,null,null,null,null,null,null,null,null,null,null,null,null,null,null,null,null,null,null,null,null,null,null,null,null,"Formação contínua",null,6,"JUN","Pico"]
[null,null,null,null,null,null,null,null,null,null,null,null,null,null,null,null,null,null,null,null,null,null,null,null,null,null,null,null,null,null,null,null,null,null,null,null,null,null,null,null,null,null,null,null,null,null,null,null,null,null,null,null,null,null,null,null,null,null,null,null,null,null,null,null,null,7,"JUL","Faial"]
[null,null,null,null,null,null,null,null,null,null,null,null,null,null,null,null,null,null,null,null,null,null,null,null,null,null,null,null,null,null,null,null,null,null,null,null,null,null,null,null,null,null,null,null,null,null,null,null,null,null,null,null,null,null,null,null,null,null,null,null,null,null,null,"Presencial",null,8,"AGO","Flores"]
[null,null,null,null,null,null,null,null,null,null,null,null,null,null,null,null,null,null,null,null,null,null,null,null,null,null,null,null,null,null,null,null,null,null,null,null,null,null,null,null,null,null,null,null,null,null,null,null,null,null,null,null,null,null,null,null,null,null,null,null,null,null,null,"E-learning/online",null,9,"SET","Corvo"]
[null,null,null,null,null,null,null,null,null,null,null,null,null,null,null,null,null,null,null,null,null,null,null,null,null,null,null,null,null,null,null,null,null,null,null,null,null,null,null,null,null,null,null,null,null,null,null,null,null,null,null,null,null,null,null,null,null,null,null,null,null,null,null,"B-Learning/misto",null,10,"OUT"]
[null,null,null,null,null,null,null,null,null,null,null,null,null,null,null,null,null,null,null,null,null,null,null,null,null,null,null,null,null,null,null,null,null,null,null,null,null,null,null,null,null,null,null,null,null,null,null,null,null,null,null,null,null,null,null,null,null,null,null,null,null,null,null,null,null,11,"NOV"]
[null,null,null,null,null,null,null,null,null,null,null,null,null,null,null,null,null,null,null,null,null,null,null,null,null,null,null,null,null,null,null,null,null,null,null,null,null,null,null,null,null,null,null,null,null,null,null,null,null,null,null,null,null,null,null,null,null,null,null,null,null,null,null,"I","Estagiário",12,"DEZ"]
[null,null,null,null,null,null,null,null,null,null,null,null,null,null,null,null,null,null,null,null,null,null,null,null,null,null,null,null,null,null,null,null,null,null,null,null,null,null,null,null,null,null,null,null,null,null,null,null,null,null,null,null,null,null,null,null,null,null,null,null,null,null,null,"II","1ª Progressão",13]
[null,null,null,null,null,null,null,null,null,null,null,null,null,null,null,null,null,null,null,null,null,null,null,null,null,null,null,null,null,null,null,null,null,null,null,null,null,null,null,null,null,null,null,null,null,null,null,null,null,null,null,null,null,null,null,null,null,null,null,null,null,null,null,"III","2ª Progressão",14]
[null,null,null,null,null,null,null,null,null,null,null,null,null,null,null,null,null,null,null,null,null,null,null,null,null,null,null,null,null,null,null,null,null,null,null,null,null,null,null,null,null,null,null,null,null,null,null,null,null,null,null,null,null,null,null,null,null,null,null,null,null,null,null,"IV","Reciclagem",15]
[null,null,null,null,null,null,null,null,null,null,null,null,null,null,null,null,null,null,null,null,null,null,null,null,null,null,null,null,null,null,null,null,null,null,null,null,null,null,null,null,null,null,null,null,null,null,null,null,null,null,null,null,null,null,null,null,null,null,null,null,null,null,null,null,null,16]
[null,null,null,null,null,null,null,null,null,null,null,null,null,null,null,null,null,null,null,null,null,null,null,null,null,null,null,null,null,null,null,null,null,null,null,null,null,null,null,null,null,null,null,null,null,null,null,null,null,null,null,null,null,null,null,null,null,null,null,null,null,null,null,"Andebol",null,17]
[null,null,null,null,null,null,null,null,null,null,null,null,null,null,null,null,null,null,null,null,null,null,null,null,null,null,null,null,null,null,null,null,null,null,null,null,null,null,null,null,null,null,null,null,null,null,null,null,null,null,null,null,null,null,null,null,null,null,null,null,null,null,null,"Atletismo",null,18]
[null,null,null,null,null,null,null,null,null,null,null,null,null,null,null,null,null,null,null,null,null,null,null,null,null,null,null,null,null,null,null,null,null,null,null,null,null,null,null,null,null,null,null,null,null,null,null,null,null,null,null,null,null,null,null,null,null,null,null,null,null,null,null,"Badminton",null,19]
[null,null,null,null,null,null,null,null,null,null,null,null,null,null,null,null,null,null,null,null,null,null,null,null,null,null,null,null,null,null,null,null,null,null,null,null,null,null,null,null,null,null,null,null,null,null,null,null,null,null,null,null,null,null,null,null,null,null,null,null,null,null,null,"Basquetebol",null,20]
[null,null,null,null,null,null,null,null,null,null,null,null,null,null,null,null,null,null,null,null,null,null,null,null,null,null,null,null,null,null,null,null,null,null,null,null,null,null,null,null,null,null,null,null,null,null,null,null,null,null,null,null,null,null,null,null,null,null,null,null,null,null,null,"Canoagem",null,21]
[null,null,null,null,null,null,null,null,null,null,null,null,null,null,null,null,null,null,null,null,null,null,null,null,null,null,null,null,null,null,null,null,null,null,null,null,null,null,null,null,null,null,null,null,null,null,null,null,null,null,null,null,null,null,null,null,null,null,null,null,null,null,null,"Ciclismo",null,22]
[null,null,null,null,null,null,null,null,null,null,null,null,null,null,null,null,null,null,null,null,null,null,null,null,null,null,null,null,null,null,null,null,null,null,null,null,null,null,null,null,null,null,null,null,null,null,null,null,null,null,null,null,null,null,null,null,null,null,null,null,null,null,null,"Columbófila",null,23]
[null,null,null,null,null,null,null,null,null,null,null,null,null,null,null,null,null,null,null,null,null,null,null,null,null,null,null,null,null,null,null,null,null,null,null,null,null,null,null,null,null,null,null,null,null,null,null,null,null,null,null,null,null,null,null,null,null,null,null,null,null,null,null,"Dança",null,24]
[null,null,null,null,null,null,null,null,null,null,null,null,null,null,null,null,null,null,null,null,null,null,null,null,null,null,null,null,null,null,null,null,null,null,null,null,null,null,null,null,null,null,null,null,null,null,null,null,null,null,null,null,null,null,null,null,null,null,null,null,null,null,null,"Desporto Equestre",null,25]
[null,null,null,null,null,null,null,null,null,null,null,null,null,null,null,null,null,null,null,null,null,null,null,null,null,null,null,null,null,null,null,null,null,null,null,null,null,null,null,null,null,null,null,null,null,null,null,null,null,null,null,null,null,null,null,null,null,null,null,null,null,null,null,"Escalada",null,26]
[null,null,null,null,null,null,null,null,null,null,null,null,null,null,null,null,null,null,null,null,null,null,null,null,null,null,null,null,null,null,null,null,null,null,null,null,null,null,null,null,null,null,null,null,null,null,null,null,null,null,null,null,null,null,null,null,null,null,null,null,null,null,null,"Esgrima",null,27]
[null,null,null,null,null,null,null,null,null,null,null,null,null,null,null,null,null,null,null,null,null,null,null,null,null,null,null,null,null,null,null,null,null,null,null,null,null,null,null,null,null,null,null,null,null,null,null,null,null,null,null,null,null,null,null,null,null,null,null,null,null,null,null,"Futebol",null,28]
[null,null,null,null,null,null,null,null,null,null,null,null,null,null,null,null,null,null,null,null,null,null,null,null,null,null,null,null,null,null,null,null,null,null,null,null,null,null,null,null,null,null,null,null,null,null,null,null,null,null,null,null,null,null,null,null,null,null,null,null,null,null,null,"Ginástica",null,29]
[null,null,null,null,null,null,null,null,null,null,null,null,null,null,null,null,null,null,null,null,null,null,null,null,null,null,null,null,null,null,null,null,null,null,null,null,null,null,null,null,null,null,null,null,null,null,null,null,null,null,null,null,null,null,null,null,null,null,null,null,null,null,null,"Goalball",null,30]
[null,null,null,null,null,null,null,null,null,null,null,null,null,null,null,null,null,null,null,null,null,null,null,null,null,null,null,null,null,null,null,null,null,null,null,null,null,null,null,null,null,null,null,null,null,null,null,null,null,null,null,null,null,null,null,null,null,null,null,null,null,null,null,"Golfe",null,31]
[null,null,null,null,null,null,null,null,null,null,null,null,null,null,null,null,null,null,null,null,null,null,null,null,null,null,null,null,null,null,null,null,null,null,null,null,null,null,null,null,null,null,null,null,null,null,null,null,null,null,null,null,null,null,null,null,null,null,null,null,null,null,null,"Judo",null,32]
[null,null,null,null,null,null,null,null,null,null,null,null,null,null,null,null,null,null,null,null,null,null,null,null,null,null,null,null,null,null,null,null,null,null,null,null,null,null,null,null,null,null,null,null,null,null,null,null,null,null,null,null,null,null,null,null,null,null,null,null,null,null,null,"Karaté",null,33]
[null,null,null,null,null,null,null,null,null,null,null,null,null,null,null,null,null,null,null,null,null,null,null,null,null,null,null,null,null,null,null,null,null,null,null,null,null,null,null,null,null,null,null,null,null,null,null,null,null,null,null,null,null,null,null,null,null,null,null,null,null,null,null,"Kickboxing",null,34]
[null,null,null,null,null,null,null,null,null,null,null,null,null,null,null,null,null,null,null,null,null,null,null,null,null,null,null,null,null,null,null,null,null,null,null,null,null,null,null,null,null,null,null,null,null,null,null,null,null,null,null,null,null,null,null,null,null,null,null,null,null,null,null,"Motociclismo",null,35]
[null,null,null,null,null,null,null,null,null,null,null,null,null,null,null,null,null,null,null,null,null,null,null,null,null,null,null,null,null,null,null,null,null,null,null,null,null,null,null,null,null,null,null,null,null,null,null,null,null,null,null,null,null,null,null,null,null,null,null,null,null,null,null,"Motonáutica",null,36]
[null,null,null,null,null,null,null,null,null,null,null,null,null,null,null,null,null,null,null,null,null,null,null,null,null,null,null,null,null,null,null,null,null,null,null,null,null,null,null,null,null,null,null,null,null,null,null,null,null,null,null,null,null,null,null,null,null,null,null,null,null,null,null,"Natação",null,37]
[null,null,null,null,null,null,null,null,null,null,null,null,null,null,null,null,null,null,null,null,null,null,null,null,null,null,null,null,null,null,null,null,null,null,null,null,null,null,null,null,null,null,null,null,null,null,null,null,null,null,null,null,null,null,null,null,null,null,null,null,null,null,null,"Parapente",null,38]
[null,null,null,null,null,null,null,null,null,null,null,null,null,null,null,null,null,null,null,null,null,null,null,null,null,null,null,null,null,null,null,null,null,null,null,null,null,null,null,null,null,null,null,null,null,null,null,null,null,null,null,null,null,null,null,null,null,null,null,null,null,null,null,"Patinagem",null,39]
[null,null,null,null,null,null,null,null,null,null,null,null,null,null,null,null,null,null,null,null,null,null,null,null,null,null,null,null,null,null,null,null,null,null,null,null,null,null,null,null,null,null,null,null,null,null,null,null,null,null,null,null,null,null,null,null,null,null,null,null,null,null,null,"Pesca Desportiva",null,40]
[null,null,null,null,null,null,null,null,null,null,null,null,null,null,null,null,null,null,null,null,null,null,null,null,null,null,null,null,null,null,null,null,null,null,null,null,null,null,null,null,null,null,null,null,null,null,null,null,null,null,null,null,null,null,null,null,null,null,null,null,null,null,null,"Surf",null,41]
[null,null,null,null,null,null,null,null,null,null,null,null,null,null,null,null,null,null,null,null,null,null,null,null,null,null,null,null,null,null,null,null,null,null,null,null,null,null,null,null,null,null,null,null,null,null,null,null,null,null,null,null,null,null,null,null,null,null,null,null,null,null,null,"Ténis de Campo",null,42]
[null,null,null,null,null,null,null,null,null,null,null,null,null,null,null,null,null,null,null,null,null,null,null,null,null,null,null,null,null,null,null,null,null,null,null,null,null,null,null,null,null,null,null,null,null,null,null,null,null,null,null,null,null,null,null,null,null,null,null,null,null,null,null,"Ténis de Mesa",null,43]
[null,null,null,null,null,null,null,null,null,null,null,null,null,null,null,null,null,null,null,null,null,null,null,null,null,null,null,null,null,null,null,null,null,null,null,null,null,null,null,null,null,null,null,null,null,null,null,null,null,null,null,null,null,null,null,null,null,null,null,null,null,null,null,"Tiro com armas de caça",null,44]
[null,null,null,null,null,null,null,null,null,null,null,null,null,null,null,null,null,null,null,null,null,null,null,null,null,null,null,null,null,null,null,null,null,null,null,null,null,null,null,null,null,null,null,null,null,null,null,null,null,null,null,null,null,null,null,null,null,null,null,null,null,null,null,"Tiro de Precisão",null,45]
[null,null,null,null,null,null,null,null,null,null,null,null,null,null,null,null,null,null,null,null,null,null,null,null,null,null,null,null,null,null,null,null,null,null,null,null,null,null,null,null,null,null,null,null,null,null,null,null,null,null,null,null,null,null,null,null,null,null,null,null,null,null,null,"Vela",null,46]
[null,null,null,null,null,null,null,null,null,null,null,null,null,null,null,null,null,null,null,null,null,null,null,null,null,null,null,null,null,null,null,null,null,null,null,null,null,null,null,null,null,null,null,null,null,null,null,null,null,null,null,null,null,null,null,null,null,null,null,null,null,null,null,"Voleibol",null,47]
[null,null,null,null,null,null,null,null,null,null,null,null,null,null,null,null,null,null,null,null,null,null,null,null,null,null,null,null,null,null,null,null,null,null,null,null,null,null,null,null,null,null,null,null,null,null,null,null,null,null,null,null,null,null,null,null,null,null,null,null,null,null,null,"Xadrez",null,48]
[null,null,null,null,null,null,null,null,null,null,null,null,null,null,null,null,null,null,null,null,null,null,null,null,null,null,null,null,null,null,null,null,null,null,null,null,null,null,null,null,null,null,null,null,null,null,null,null,null,null,null,null,null,null,null,null,null,null,null,null,null,null,null,null,null,49]
[null,null,null,null,null,null,null,null,null,null,null,null,null,null,null,null,null,null,null,null,null,null,null,null,null,null,null,null,null,null,null,null,null,null,null,null,null,null,null,null,null,null,null,null,null,null,null,null,null,null,null,null,null,null,null,null,null,null,null,null,null,null,null,null,null,50]
[null,null,null,null,null,null,null,null,null,null,null,null,null,null,null,null,null,null,null,null,null,null,null,null,null,null,null,null,null,null,null,null,null,null,null,null,null,null,null,null,null,null,null,null,null,null,null,null,null,null,null,null,null,null,null,null,null,null,null,null,null,null,null,null,null,51]
[null,null,null,null,null,null,null,null,null,null,null,null,null,null,null,null,null,null,null,null,null,null,null,null,null,null,null,null,null,null,null,null,null,null,null,null,null,null,null,null,null,null,null,null,null,null,null,null,null,null,null,null,null,null,null,null,null,null,null,null,null,null,null,null,null,52]
[null,null,null,null,null,null,null,null,null,null,null,null,null,null,null,null,null,null,null,null,null,null,null,null,null,null,null,null,null,null,null,null,null,null,null,null,null,null,null,null,null,null,null,null,null,null,null,null,null,null,null,null,null,null,null,null,null,null,null,null,null,null,null,"Viagens",null,53]
[null,null,null,null,null,null,null,null,null,null,null,null,null,null,null,null,null,null,null,null,null,null,null,null,null,null,null,null,null,null,null,null,null,null,null,null,null,null,null,null,null,null,null,null,null,null,null,null,null,null,null,null,null,null,null,null,null,null,null,null,null,null,null,"Lisboa",134,54]
[null,null,null,null,null,null,null,null,null,null,null,null,null,null,null,null,null,null,null,null,null,null,null,null,null,null,null,null,null,null,null,null,null,null,null,null,null,null,null,null,null,null,null,null,null,null,null,null,null,null,null,null,null,null,null,null,null,null,null,null,null,null,null,"Madeira",119]
[null,null,null,null,null,null,null,null,null,null,null,null,null,null,null,null,null,null,null,null,null,null,null,null,null,null,null,null,null,null,null,null,null,null,null,null,null,null,null,null,null,null,null,null,null,null,null,null,null,null,null,null,null,null,null,null,null,null,null,null,null,null,null,"Açores",60]
[null,null,null,null,null,null,null,null,null,null,null,null,null,null,null,null,null,null,null,null,null,null,null,null,null,null,null,null,null,null,null,null,null,null,null,null,null,null,null,null,null,null,null,null,null,null,null,null,null,null,null,null,null,null,null,null,null,null,null,null,null,null,null,"Marítima (PIX/FAI)",7.6]
[null,null,null,null,null,null,null,null,null,null,null,null,null,null,null,null,null,null,null,null,null,null,null,null,null,null,null,null,null,null,null,null,null,null,null,null,null,null,null,null,null,null,null,null,null,null,null,null,null,null,null,null,null,null,null,null,null,null,null,null,null,null,null,"Marítima (SJZ/FAI)",31]
[null,null,null,null,null,null,null,null,null,null,null,null,null,null,null,null,null,null,null,null,null,null,null,null,null,null,null,null,null,null,null,null,null,null,null,null,null,null,null,null,null,null,null,null,null,null,null,null,null,null,null,null,null,null,null,null,null,null,null,null,null,null,null,"Marítima (SJZ/PIX)",21]
[]
[]
[]
[]
[null,null,null,null,null,null,null,null,null,null,null,null,null,null,null,null,null,null,null,null,null,null,null,null,null,null,null,null,null,null,null,null,null,null,null,null,null,null,null,null,null,null,null,null,null,null,null,null,null,null,null,null,null,null,null,null,null,null,null,null,null,null,"MODO","TIPOLOGIA DA AÇÃO","Categoria da ação","Nível /Grau","Limite"]
[null,null,null,null,null,null,null,null,null,null,null,null,null,null,null,null,null,null,null,null,null,null,null,null,null,null,null,null,null,null,null,null,null,null,null,null,null,null,null,null,null,null,null,null,null,null,null,null,null,null,null,null,null,null,null,null,null,null,null,null,null,null,"Organização","Curso","Máximo financiamento"]
[null,null,null,null,null,null,null,null,null,null,null,null,null,null,null,null,null,null,null,null,null,null,null,null,null,null,null,null,null,null,null,null,null,null,null,null,null,null,null,null,null,null,null,null,null,null,null,null,null,null,null,null,null,null,null,null,null,null,null,null,null,null,"Organização","Curso","Treinador","I",null,"Ultrapassa o máximo financiamento"]
[null,null,null,null,null,null,null,null,null,null,null,null,null,null,null,null,null,null,null,null,null,null,null,null,null,null,null,null,null,null,null,null,null,null,null,null,null,null,null,null,null,null,null,null,null,null,null,null,null,null,null,null,null,null,null,null,null,null,null,null,null,null,"Organização","Curso","Treinador","II",3750,"Ultrapassa o máximo financiamento"]
[null,null,null,null,null,null,null,null,null,null,null,null,null,null,null,null,null,null,null,null,null,null,null,null,null,null,null,null,null,null,null,null,null,null,null,null,null,null,null,null,null,null,null,null,null,null,null,null,null,null,null,null,null,null,null,null,null,null,null,null,null,null,"Organização","Curso","Treinador","III",null,"Decisão DRD"]
[null,null,null,null,null,null,null,null,null,null,null,null,null,null,null,null,null,null,null,null,null,null,null,null,null,null,null,null,null,null,null,null,null,null,null,null,null,null,null,null,null,null,null,null,null,null,null,null,null,null,null,null,null,null,null,null,null,null,null,null,null,null,"Organização","Curso","Treinador","IV",null,"Decisão DRD"]
[null,null,null,null,null,null,null,null,null,null,null,null,null,null,null,null,null,null,null,null,null,null,null,null,null,null,null,null,null,null,null,null,null,null,null,null,null,null,null,null,null,null,null,null,null,null,null,null,null,null,null,null,null,null,null,null,null,null,null,null,null,null,"Organização","Curso","Árbitro/Juiz","1ª Progressão",1500,"Ultrapassa o máximo financiamento"]
[null,null,null,null,null,null,null,null,null,null,null,null,null,null,null,null,null,null,null,null,null,null,null,null,null,null,null,null,null,null,null,null,null,null,null,null,null,null,null,null,null,null,null,null,null,null,null,null,null,null,null,null,null,null,null,null,null,null,null,null,null,null,"Organização","Curso","Árbitro/Juiz","2ª Progressão",null,"Ultrapassa o máximo financiamento"]
[null,null,null,null,null,null,null,null,null,null,null,null,null,null,null,null,null,null,null,null,null,null,null,null,null,null,null,null,null,null,null,null,null,null,null,null,null,null,null,null,null,null,null,null,null,null,null,null,null,null,null,null,null,null,null,null,null,null,null,null,null,null,"Organização","Curso","Árbitro/Juiz","Estagiário",900,"Decisão DRD"]
[null,null,null,null,null,null,null,null,null,null,null,null,null,null,null,null,null,null,null,null,null,null,null,null,null,null,null,null,null,null,null,null,null,null,null,null,null,null,null,null,null,null,null,null,null,null,null,null,null,null,null,null,null,null,null,null,null,null,null,null,null,null,"Organização","Curso","Árbitro/Juiz","Reciclagem"]
[null,null,null,null,null,null,null,null,null,null,null,null,null,null,null,null,null,null,null,null,null,null,null,null,null,null,null,null,null,null,null,null,null,null,null,null,null,null,null,null,null,null,null,null,null,null,null,null,null,null,null,null,null,null,null,null,null,null,null,null,null,null,"Participação","Curso","Árbitro/Juiz",8]
[null,null,null,null,null,null,null,null,null,null,null,null,null,null,null,null,null,null,null,null,null,null,null,null,null,null,null,null,null,null,null,null,null,null,null,null,null,null,null,null,null,null,null,null,null,null,null,null,null,null,null,null,null,null,null,null,null,null,null,null,null,null,"Participação","Curso","Treinador",8]
[null,null,null,null,null,null,null,null,null,null,null,null,null,null,null,null,null,null,null,null,null,null,null,null,null,null,null,null,null,null,null,null,null,null,null,null,null,null,null,null,null,null,null,null,null,null,null,null,null,null,null,null,null,null,null,null,null,null,null,null,null,null,"Participação","Formação continua","Árbitro/Juiz",4]
[null,null,null,null,null,null,null,null,null,null,null,null,null,null,null,null,null,null,null,null,null,null,null,null,null,null,null,null,null,null,null,null,null,null,null,null,null,null,null,null,null,null,null,null,null,null,null,null,null,null,null,null,null,null,null,null,null,null,null,null,null,null,"Participação","Formação continua","Treinador",4]
[null,null,null,null,null,null,null,null,null,null,null,null,null,null,null,null,null,null,null,null,null,null,null,null,null,null,null,null,null,null,null,null,null,null,null,null,null,null,null,null,null,null,null,null,null,null,null,null,null,null,null,null,null,null,null,null,null,null,null,null,null,null,"Participação","Curso","Formandos","formandos ate ao máximo"]
[]
[]
[null,null,null,null,null,null,null,null,null,null,null,null,null,null,null,null,null,null,null,null,null,null,null,null,null,null,null,null,null,null,null,null,null,null,null,null,null,null,null,null,null,null,null,null,null,null,null,null,null,null,null,null,null,null,null,null,null,null,null,null,null,null,"Participação","Formação continua","Preletores","Preletores ate ao máximo"]
[null,null,null,null,null,null,null,null,null,null,null,null,null,null,null,null,null,null,null,null,null,null,null,null,null,null,null,null,null,null,null,null,null,null,null,null,null,null,null,null,null,null,null,null,null,null,null,null,null,null,null,null,null,null,null,null,null,null,null,null,null,null,"Participação","Formação continua","Treinador",2]
[]
[]
[]
[null,null,null,null,null,null,null,null,null,null,null,null,null,null,null,null,null,null,null,null,null,null,null,null,null,null,null,null,null,null,null,null,null,null,null,null,null,null,null,null,null,null,null,null,null,null,null,null,null,null,null,null,null,null,null,null,null,null,null,null,null,null,"Modo",{"$f":"H12","v":0},"Organização","Participação"]
[null,null,null,null,null,null,null,null,null,null,null,null,null,null,null,null,null,null,null,null,null,null,null,null,null,null,null,null,null,null,null,null,null,null,null,null,null,null,null,null,null,null,null,null,null,null,null,null,null,null,null,null,null,null,null,null,null,null,null,null,null,null,"Tipologia",{"$f":"AA12","v":0},"Curso","Formação continua"]
[null,null,null,null,null,null,null,null,null,null,null,null,null,null,null,null,null,null,null,null,null,null,null,null,null,null,null,null,null,null,null,null,null,null,null,null,null,null,null,null,null,null,null,null,null,null,null,null,null,null,null,null,null,null,null,null,null,null,null,null,null,null,"Categoria",{"$f":"J16","v":0},"Treinador","Árbitro/Juiz"]
[null,null,null,null,null,null,null,null,null,null,null,null,null,null,null,null,null,null,null,null,null,null,null,null,null,null,null,null,null,null,null,null,null,null,null,null,null,null,null,null,null,null,null,null,null,null,null,null,null,null,null,null,null,null,null,null,null,null,null,null,null,"Treinador","Grau",{"$f":"Y16","v":0},"I","II","III","IV"]
[null,null,null,null,null,null,null,null,null,null,null,null,null,null,null,null,null,null,null,null,null,null,null,null,null,null,null,null,null,null,null,null,null,null,null,null,null,null,null,null,null,null,null,null,null,null,null,null,null,null,null,null,null,null,null,null,null,null,null,null,null,null,null,null,2200,3750,"DRD","DRD"]
[null,null,null,null,null,null,null,null,null,null,null,null,null,null,null,null,null,null,null,null,null,null,null,null,null,null,null,null,null,null,null,null,null,null,null,null,null,null,null,null,null,null,null,null,null,null,null,null,null,null,null,null,null,null,null,null,null,null,null,null,null,"Árbitro/Juiz","Nível",{"$f":"AF16","v":0},"1ª Progressão","2ª Progressão","Estagiário","Reciclagem"]
[null,null,null,null,null,null,null,null,null,null,null,null,null,null,null,null,null,null,null,null,null,null,null,null,null,null,null,null,null,null,null,null,null,null,null,null,null,null,null,null,null,null,null,null,null,null,null,null,null,null,null,null,null,null,null,null,null,null,null,null,null,null,null,null,1500,"DRD",900,"DRD"]
[null,null,null,null,null,null,null,null,null,null,null,null,null,null,null,null,null,null,null,null,null,null,null,null,null,null,null,null,null,null,null,null,null,null,null,null,null,null,null,null,null,null,null,null,null,null,null,null,null,null,null,null,null,null,null,null,null,null,null,null,null,"Treinador","Limite Fin.",{"$f":"IFERROR(LOOKUP(BL254,BM254:BP254,BM255:BP255),0)","v":0}]
[null,null,null,null,null,null,null,null,null,null,null,null,null,null,null,null,null,null,null,null,null,null,null,null,null,null,null,null,null,null,null,null,null,null,null,null,null,null,null,null,null,null,null,null,null,null,null,null,null,null,null,null,null,null,null,null,null,null,null,null,null,"Árbitro/Juiz","Limite Fin.",{"$f":"IFERROR(LOOKUP(BL256,BM256:BP256,BM257:BP257),0)","v":0}]
[]
[]
[null,null,null,null,null,null,null,null,null,null,null,null,null,null,null,null,null,null,null,null,null,null,null,null,null,null,null,null,null,null,null,null,null,null,null,null,null,null,null,null,null,null,null,null,null,null,null,null,null,null,null,null,null,null,null,null,null,null,null,null,null,null,"Árbitro/Juiz",{"$f":"IFERROR(LOOKUP($AA$12,$BL$239:$BL$242,$BN$239:$BN$242),0)","v":0},"Apoio até ao limite de 2 preletores"]
[null,null,null,null,null,null,null,null,null,null,null,null,null,null,null,null,null,null,null,null,null,null,null,null,null,null,null,null,null,null,null,null,null,null,null,null,null,null,null,null,null,null,null,null,null,null,null,null,null,null,null,null,null,null,null,null,null,null,null,null,null,null,"Treinador",{"$f":"IFERROR(LOOKUP($AA$12,$BL$239:$BL$242,$BN$239:$BN$242),0)","v":0},"Valor considerado no apoio"]
[null,null,null,null,null,null,null,null,null,null,null,null,null,null,null,null,null,null,null,null,null,null,null,null,null,null,null,null,null,null,null,null,null,null,null,null,null,null,null,null,null,null,null,null,null,null,null,null,null,null,null,null,null,null,null,null,null,null,null,null,null,null,"limite",{"$f":"IFERROR(LOOKUP(J16,BK262:BK263,BL262:BL263),0)","v":0},"Número máximo limite de formandos apoiados","»"]
[null,null,null,null,null,null,null,null,null,null,null,null,null,null,null,null,null,null,null,null,null,null,null,null,null,null,null,null,null,null,null,null,null,null,null,null,null,null,null,null,null,null,null,null,null,null,null,null,null,null,null,null,null,null,null,null,null,null,null,null,null,null,null,null,"Preencher o valor correspondente ao máximo de formandos apoiados pela DRD"]
[null,null,null,null,null,null,null,null,null,null,null,null,null,null,null,null,null,null,null,null,null,null,null,null,null,null,null,null,null,null,null,null,null,null,null,null,null,null,null,null,null,null,null,null,null,null,null,null,null,null,null,null,null,null,null,null,null,null,null,null,null,null,"Árbitro/Juiz",{"$f":"BL259","v":0}]
[null,null,null,null,null,null,null,null,null,null,null,null,null,null,null,null,null,null,null,null,null,null,null,null,null,null,null,null,null,null,null,null,null,null,null,null,null,null,null,null,null,null,null,null,null,null,null,null,null,null,null,null,null,null,null,null,null,null,null,null,null,null,"Treinador",{"$f":"BL258","v":0}]
[null,null,null,null,null,null,null,null,null,null,null,null,null,null,null,null,null,null,null,null,null,null,null,null,null,null,null,null,null,null,null,null,null,null,null,null,null,null,null,null,null,null,null,null,null,null,null,null,null,null,null,null,null,null,null,null,null,null,null,null,null,null,"limite",{"$f":"IFERROR(LOOKUP(J16,BK266:BL267,BL266:BL267),0)","v":0},"Limite máximo da DRD"]
[null,null,null,null,null,null,null,null,null,null,null,null,null,null,null,null,null,null,null,null,null,null,null,null,null,null,null,null,null,null,null,null,null,null,null,null,null,null,null,null,null,null,null,null,null,null,null,null,null,null,null,null,null,null,null,null,null,null,null,null,null,null,"Form. Cont.",{"$f":"IF(AA12=\"Formação contínua\",BN272,\"\")","v":""},null,"Formação contínua"]
[null,null,null,null,null,null,null,null,null,null,null,null,null,null,null,null,null,null,null,null,null,null,null,null,null,null,null,null,null,null,null,null,null,null,null,null,null,null,null,null,null,null,null,null,null,null,null,null,null,null,null,null,null,null,null,null,null,null,null,null,null,null,"Preletores",{"$f":"IF(Y106=\"\",AJ105,\"\")","v":""},null,{"$f":"IF(AA12=\"Formação contínua\", AJ105,)","v":0}]
[null,null,null,null,null,null,null,null,null,null,null,null,null,null,null,null,null,null,null,null,null,null,null,null,null,null,null,null,null,null,null,null,null,null,null,null,null,null,null,null,null,null,null,null,null,null,null,null,null,null,null,null,null,null,null,null,null,null,null,null,null,null,"limite prelet.",{"$f":"IF(Y106=\"\",\"\",AJ106)","v":""},{"$f":"IF(V111,\"\",AJ200)","v":{"$error":"#VALUE!"}},{"$f":"IF(N97=\"\",\"\",IF(AA12=\"Formação contínua\", AJ107,))","v":""}]
[null,null,null,null,null,null,null,null,null,null,null,null,null,null,null,null,null,null,null,null,null,null,null,null,null,null,null,null,null,null,null,null,null,null,null,null,null,null,null,null,null,null,null,null,null,null,null,null,null,null,null,null,null,null,null,null,null,null,null,null,null,null,"Formandos",{"$f":"IF(V111=\"\",AJ110,\"\")","v":""},{"$f":"IF(Y107=\"\",\"\",AJ107)","v":""},{"$f":"IF(Y107=\"Valor a considerar para apoio\",BN271,BN270)","v":0}]
[null,null,null,null,null,null,null,null,null,null,null,null,null,null,null,null,null,null,null,null,null,null,null,null,null,null,null,null,null,null,null,null,null,null,null,null,null,null,null,null,null,null,null,null,null,null,null,null,null,null,null,null,null,null,null,null,null,null,null,null,null,null,"limite form.",{"$f":"IF(Y111=\"\",\"\",IF(V111,AJ111,AJ110))","v":""}]
[null,null,null,null,null,null,null,null,null,null,null,null,null,null,null,null,null,null,null,null,null,null,null,null,null,null,null,null,null,null,null,null,null,null,null,null,null,null,null,null,null,null,null,null,null,null,null,null,null,null,null,null,null,null,null,null,null,null,null,null,null,null,"Total",{"$f":"SUM(BL269:BL273)","v":0}]
[]
[null,null,null,null,null,null,null,null,null,null,null,null,null,null,null,null,null,null,null,null,null,null,null,null,null,null,null,null,null,null,null,null,null,null,null,null,null,null,null,null,null,null,null,null,null,null,null,null,null,null,null,null,null,null,null,null,null,null,null,null,null,null,"Organização","Formação contínua",{"$f":"J16","v":0}]
[null,null,null,null,null,null,null,null,null,null,null,null,null,null,null,null,null,null,null,null,null,null,null,null,null,null,null,null,null,null,null,null,null,null,null,null,null,null,null,null,null,null,null,null,null,null,null,null,null,null,null,null,null,null,null,null,null,null,null,null,null,null,{"$f":"H12","v":0},{"$f":"AA12","v":0},{"$f":"J16","v":0}]
[null,null,null,null,null,null,null,null,null,null,null,null,null,null,null,null,null,null,null,null,null,null,null,null,null,null,null,null,null,null,null,null,null,null,null,null,null,null,null,null,null,null,null,null,null,null,null,null,null,null,null,null,null,null,null,null,null,null,null,null,null,null,null,"Apoio disponível até ao limite de 2 preletores"]
[]
[null,null,null,null,null,null,null,null,null,null,null,null,null,null,null,null,null,null,null,null,null,null,null,null,null,null,null,null,null,null,null,null,null,null,null,null,null,null,null,null,null,null,null,null,null,null,null,null,null,null,null,null,null,null,null,null,null,null,null,null,null,null,"Preletores"]
[null,null,null,null,null,null,null,null,null,null,null,null,null,null,null,null,null,null,null,null,null,null,null,null,null,null,null,null,null,null,null,null,null,null,null,null,null,null,null,null,null,null,null,null,null,null,null,null,null,null,null,null,null,null,null,null,null,null,null,null,null,null,{"$f":"SUM(Y90:AC92)","v":0},"Viagens aereas"]
[null,null,null,null,null,null,null,null,null,null,null,null,null,null,null,null,null,null,null,null,null,null,null,null,null,null,null,null,null,null,null,null,null,null,null,null,null,null,null,null,null,null,null,null,null,null,null,null,null,null,null,null,null,null,null,null,null,null,null,null,null,null,{"$f":"SUM(Y93:AC96)","v":0},"Viagens marítimas"]
[]
[null,null,null,null,null,null,null,null,null,null,null,null,null,null,null,null,null,null,null,null,null,null,null,null,null,null,null,null,null,null,null,null,null,null,null,null,null,null,null,null,null,null,null,null,null,null,null,null,null,null,null,null,null,null,null,null,null,null,null,null,null,null,"Formandos"]
[null,null,null,null,null,null,null,null,null,null,null,null,null,null,null,null,null,null,null,null,null,null,null,null,null,null,null,null,null,null,null,null,null,null,null,null,null,null,null,null,null,null,null,null,null,null,null,null,null,null,null,null,null,null,null,null,null,null,null,null,null,null,{"$f":"SUM(S102:W104)","v":0},"Viagens aereas"]
[null,null,null,null,null,null,null,null,null,null,null,null,null,null,null,null,null,null,null,null,null,null,null,null,null,null,null,null,null,null,null,null,null,null,null,null,null,null,null,null,null,null,null,null,null,null,null,null,null,null,null,null,null,null,null,null,null,null,null,null,null,null,{"$f":"SUM(S105:W108)","v":0},"Viagens marítimas"]

{"sheet":"Folha1","index":2,"n_rows":74,"n_cols":29,"rows_kept":74,"cut":false,"hidden":true,"merged":[[69,15,69,17],[69,18,71,18],[69,19,71,19],[69,21,71,21],[60,15,60,23],[60,24,60,28],[61,15,61,19],[61,20,61,21],[61,22,62,22],[61,23,62,23],[61,24,62,24],[61,25,62,25],[61,26,62,26],[61,27,62,27],[61,28,62,28],[50,20,52,20],[50,15,52,15],[50,16,52,16],[50,17,52,17],[50,18,52,18],[50,19,52,19]]}
[]
[]
[null,null,null,null,null,"ORGANIZAÇÃO",null,null,"Organização","Curso","Máximo financiamento"]
[null,"Viagens",null,null,null,"Treinadores - Curso",null,null,"Organização","Curso","Treinadores","I",2200,"Ultrapassa o máximo finaciamento"]
[null,"Lisboa",134,null,null,"Máximo financiamento",null,null,"Organização","Curso","Treinadores","II",3750,"Ultrapassa o máximo finaciamento"]
[null,"Madeira",119,null,null,"I",2200,null,"Organização","Curso","Treinadores","III","Decisão DRD"]
[null,"Açores",60,null,null,"II",3750,null,"Organização","Curso","Treinadores","IV","Decisão DRD"]
[null,"Maritima (PIX/FAI)",7.6,null,null,"III","Decisão DRD",null,"Organização","Curso","Arbitros/Juizes","Estagiário",900,"Ultrapassa o máximo finaciamento"]
[null,"Maritima (SJZ/FAI)",31,null,null,"IV","Decisão DRD",null,"Organização","Curso","Arbitros/Juizes","1ª Progressão",1500,"Ultrapassa o máximo finaciamento"]
[null,"Maritima (SJZ/PIX)",21,null,null,null,null,null,"Organização","Curso","Arbitros/Juizes","2ª Progressão","Decisão DRD"]
[null,null,null,null,null,"Grau I e II",null,null,"Organização","Curso","Arbitros/Juizes","Reciclagem"]
[null,null,null,null,null,"Preletores"]
[null,null,null,null,null,"Passagem aerea/ maritima",1]
[null,null,null,null,null,"Alojamento e refeições",0.8]
[null,null,null,null,null,"Preleções",0.6]
[]
[null,null,null,null,null,"Arbitros/Juizes - Curso"]
[null,null,null,null,null,"Máximo financiamento"]
[null,null,null,null,null,"Estagiário",900]
[null,null,null,null,null,"1ª progressão",1500]
[null,null,null,null,null,"seguintes","Decisão DRD"]
[]
[null,null,null,null,null,"Cursos estagiarios/regionais"]
[null,null,null,null,null,"Preletores"]
[null,null,null,null,null,"Passagem aerea/ maritima",1]
[null,null,null,null,null,"Alojamento e refeições",0.8,null,"Participação","Curso","Formandos","formandos ate ao maximo"]
[null,null,null,null,null,"Preleções",0.6,null,"Participação","Curso","Treinadores",8]
[null,null,null,null,null,null,null,null,"Participação","Curso","Arbitros/Juizes",8]
[null,null,null,null,null,null,null,null,"Participação","Formação continua","Treinadores",4]
[null,null,null,null,null,"ORGANIZAÇÃO",null,null,"Participação","Formação continua","Arbitros/Juizes",4]
[null,null,null,null,null,"Arbitros/Juizes - reciclagens obrigatorias"]
[null,null,null,null,null,"Preletores","ate ao maximo de 2"]
[null,null,null,null,null,"Passagem aerea/ maritima",1,null,"Participação","Formação continua","Preletores","Preletores ate ao maximo"]
[null,null,null,null,null,null,null,null,"Participação","Formação continua","Treinadores",2]
[null,null,null,null,null,"Treinadores - Formação Continua"]
[null,null,null,null,null,"Preletores","ate ao maximo de 2"]
[null,null,null,null,null,"Passagem aerea/ maritima",1]
[]
[]
[]
[null,null,null,null,null,"PARTICIPAÇÃO"]
[null,null,null,null,null,"Treinadores e Arbitros/Juizes - Curso"]
[null,null,null,null,null,"Formandos","ate ao maximo de 8"]
[null,null,null,null,null,"deslocações","Tarifas"]
[]
[null,null,null,null,null,"PARTICIPAÇÃO"]
[null,null,null,null,null,"Treinadores e Arbitros/Juizes - Formação continua e Reciclagens"]
[null,null,null,null,null,"Formandos","ate ao maximo de 4"]
[null,null,null,null,null,"deslocações","Tarifas"]
[]
[null,null,null,null,null,null,null,null,null,null,null,null,null,null,null,"Tipologia da ação","Modo","Categoria","Designação da ação e indicação da ilha/Porto/Lisboa/Madeira, por extenso, onde decorre\n*Apenas inicial em maiúscula\n*Indicar nível para árbitro/juiz\n*Indicar grau para treinador\n","Data prevista da ação\n* mês/último dia da ação","Ilha/Cont/Mad prevista para realização "]
[]
[]
[null,null,null,null,null,null,null,null,null,null,null,null,null,null,null,"Formação Contínua","Participação","Treinador","Formação Contínua de Treinadores - Porto","junho","Continente"]
[null,null,null,null,null,null,null,null,null,null,null,null,null,null,null,"Curso","Organização","Treinador","Curso de Treinadores de Grau I - Terceira","julho","Terceira"]
[]
[]
[]
[]
[]
[null,null,null,null,null,null,null,null,null,null,null,null,null,null,null,"DESPESAS",null,null,null,null,null,null,null,null,"RECEITAS"]
[null,null,null,null,null,null,null,null,null,null,null,null,null,null,null,"Dados preletor(es)",null,null,null,null,"Dados formandos",null,"Outras","Total das despesas","Taxa de inscrição","Apoio federativo","Apoio da DRD","Outras","Total das receitas"]
[null,null,null,null,null,null,null,null,null,null,null,null,null,null,null,"N.º de deslocados","Valor Viagens","Alojamento","Refeições","Preleções","Nº de deslocados","Valor Viagens "]
[null,null,null,null,null,null,null,null,null,null,null,null,null,null,null,0,0,0,0,0,1,134,0,{"$f":"Q64+R64+S64+T64+V64+W64","v":134},0,0,134,0,{"$f":"SUM(Y64:AB64)","v":134}]
[null,null,null,null,null,null,null,null,null,null,null,null,null,null,null,1,450,225,120,2400,10,600,{"$f":"500+250+68+240","v":1058},4853,1500,0,2838,515,4853]
[]
[]
[]
[]
[null,null,null,null,null,null,null,null,null,null,null,null,null,null,null,"Dados preletor(es)",null,null,"Sub-total organização da ação","Limite máximo de valor para organização","Dados formandos","Total de apoio previsto DRD - Se não houvesse limite financeiro  "]
[null,null,null,null,null,null,null,null,null,null,null,null,null,null,null,"Valor Viagens",0.8,0.6,null,null,"Valor Viagens"]
[null,null,null,null,null,null,null,null,null,null,null,null,null,null,null,"Sem limite  para cursos\n2 para cada FC","Alojamento + Refeições","Preleções",null,null,"Até 8 viagens para cursos\nAté 4 viagens para FC"]
[null,null,null,null,null,null,null,null,null,null,null,null,null,null,null,null,{"$f":"IF(AND($G19=\"Curso\",#REF!=\"Organização\"),(C24+D24)*$AF$12,\"\")","v":{"$error":"#REF!"}},{"$f":"IF(AND($G19=\"Curso\",#REF!=\"Organização\"),E24*$AG$12,\"\")","v":{"$error":"#REF!"}},{"$f":"SUM(P73:R73)","v":{"$error":"#REF!"}},null,{"$f":"134*1","v":134},{"$f":"U73","v":134}]
[null,null,null,null,null,null,null,null,null,null,null,null,null,null,null,{"$f":"B25","v":0},{"$f":"IF(AND($G20=\"Curso\",#REF!=\"Organização\"),(C25+D25)*$AF$12,\"\")","v":{"$error":"#REF!"}},{"$f":"IF(AND($G20=\"Curso\",#REF!=\"Organização\"),E25*$AG$12,\"\")","v":{"$error":"#REF!"}},{"$f":"SUM(P74:R74)","v":{"$error":"#REF!"}},2200,{"$f":"60*8","v":480},{"$f":"U74+S74","v":{"$error":"#REF!"}}]